[Event "42nd WALTON Women-ch Bangladesh 2024"]
[Site "Dhaka"]
[Date "2024.05.23"]
[Round "4.3"]
[White "Ahmed, Walijah"]
[Black "Neelava, Choudhury"]
[Result "1-0"]
[ECO "C88"]
[WhiteElo "1878"]
[BlackElo "1778"]
[Annotator "NA RC"]
[PlyCount "113"]
[EventDate "2024.05.20"]
[EventType "tourn"]
[EventCountry "BAN"]
[SourceTitle "playchess.com"]
[Source "ChessBase"]
[SourceQuality "1"]
[TimeControl "40/5400+30:1800+30"]

1. e4 {[%emt 0:00:04]} e5 {[%emt 0:01:42]} 2. Nf3 {[%emt 0:00:08]} Nc6 {[%emt 0:00:05]} 3. Bb5 {[%emt 0:00:07]} a6 {[%emt 0:00:05]} 4. Ba4 {[%emt 0:00:06]} Nf6 {[%emt 0:00:06]} 5. O-O {[%emt 0:00:08]} Be7 {[%emt 0:00:01]} 6. Re1 {[%emt 0:00:11]} b5 {[%emt 0:00:05]} 7. Bb3 {[%emt 0:00:05]} O-O {[%emt 0:00:05]} 8. h3 {[%emt 0:00:07]} Bb7 {[%emt 0:00:06]} 9. d3 {[%emt 0:00:06]} d5 {[%emt 0:00:46] seems to push 9...d6 aside. C88: Closed Ruy Lopez: Anti-Marshall Systems.} 10. exd5 {[%emt 0:00:05]} Nxd5 {[%emt 0:00:04]} 11. Nbd2 {[%emt 0:00:25]} f6 {[%emt 0:01:52]} 12. a4 {[%emt 0:01:26]} Qd7 {[%emt 0:02:37]} 13. Ne4 {[%emt 0:01:39]} Kh8 {[%emt 0:03:51]} 14. Bd2 {[%emt 0:06:32]} Rfd8 $146 {[%emt 0:03:47]} ({Predecessor:} 14... Nd4 15. Nxd4 exd4 16. c4 Nb4 17. Bf4 bxc4 18. Bxc4 c5 19. Rc1 Qc6 20. Qf3 Qd7 {½-½ Buzzoni,E-Soderstrom,A (2322) Reykjavik op 2023 (4)}) 15. Qe2 {[%emt 0:05:58]} Bf8 {[%emt 0:08:22]} 16. Rad1 {[%emt 0:08:49]} (16. c3 $1 $14) 16... Nd4 {[%emt 0:11:02]} 17. Nxd4 {[%emt 0:02:47]} exd4 {[%emt 0:00:15]} 18. axb5 {[%emt 0:01:08]} axb5 {[%emt 0:00:28]} 19. Qh5 {[%emt 0:05:26]} c5 {[%emt 0:07:30]} 20. c3 {[%emt 0:06:34]} dxc3 {[%emt 0:04:11]} 21. bxc3 {[%emt 0:17:59]} b4 {[%emt 0:10:45]} 22. c4 {[%emt 0:09:39]} Nc7 {[%emt 0:06:13]} 23. Nxc5 {[%emt 0:03:51]} Bxc5 {[%emt 0:13:20]} 24. Qxc5 {[%emt 0:00:06]} Na6 {[%emt 0:01:42]} 25. Qb6 {[%emt 0:07:28]} Rab8 {[%emt 0:01:55]} 26. Qe3 {[%emt 0:07:05]} Qxd3 {[%emt 0:05:08]} 27. Qxd3 {[%emt 0:02:36]} Rxd3 {[%emt 0:00:11] [#]} 28. Bf4 $1 {[%emt 0:00:13]} Rxd1 {[%emt 0:03:27]} 29. Rxd1 {[%emt 0:00:05]} Rc8 {[%emt 0:00:43]} 30. Be3 {[%emt 0:03:11]} h6 {[%emt 0:02:30]} 31. Rd6 {[%emt 0:01:09]} Nb8 {[%emt 0:03:05]} 32. Rb6 {[%emt 0:01:39]} Be4 {[%emt 0:00:48]} 33. Rxb4 {[%emt 0:02:59]} Nc6 {[%emt 0:01:09]} 34. Rb5 {[%emt 0:00:52]} Ne5 {[%emt 0:02:08]} 35. c5 {[%emt 0:01:25]} Bd3 {[%emt 0:01:46]} 36. Rb7 {[%emt 0:00:55]} Nc4 {[%emt 0:01:46]} 37. Re7 $16 {[%emt 0:02:52]} Na5 {[%emt 0:04:15]} 38. Be6 {[%emt 0:01:43]} Rd8 {[%emt 0:00:43]} 39. Rc7 {[%emt 0:01:14]} Bb5 {[%emt 0:00:38]} 40. Bf4 {[%emt 0:00:52]} Nc4 {[%emt 0:00:39]} 41. Rb7 {[%emt 0:05:56]} Bc6 {[%emt 0:03:36]} 42. Rb4 {[%emt 0:02:26]} Na5 {[%emt 0:02:04]} 43. Bc7 {[%emt 0:01:19]} Ra8 {[%emt 0:00:25]} 44. Rb6 {[%emt 0:03:13]} g6 {[%emt 0:03:00]} 45. Bf4 {[%emt 0:08:12]} Re8 {[%emt 0:06:04]} 46. Bf7 {[%emt 0:02:36]} Re1+ {[%emt 0:01:42]} 47. Kh2 {[%emt 0:00:04]} Kg7 {[%emt 0:00:38]} 48. Bd2 {[%emt 0:00:38]} Ra1 {[%emt 0:00:56]} 49. Be6 {[%emt 0:00:49]} Be4 {[%emt 0:02:08]} 50. Bc3 {[%emt 0:04:09]} Ra3 {[%emt 0:01:48]} 51. Bb4 {[%emt 0:00:13]} Ra1 {[%emt 0:00:45]} 52. f3 {[%emt 0:02:34]} Ba8 {[%emt 0:02:43]} 53. Rb8 {[%emt 0:01:09]} Nc6 {[%emt 0:03:40]} 54. Rg8+ {[%emt 0:00:04]} Kh7 {[%emt 0:00:13]} 55. Bc3 {[%emt 0:00:21]} Ne7 {[%emt 0:00:13]} 56. Rf8 {[%emt 0:01:05]} Kg7 {[%emt 0:00:46]} 57. Rf7+ {[%emt 0:00:10]} 1-0

[Event "42nd WALTON Women-ch Bangladesh 2024"]
[Site "Dhaka"]
[Date "2024.05.23"]
[Round "4.4"]
[White "Israt, Jahan Diba"]
[Black "Hamid, Rani"]
[Result "1/2-1/2"]
[ECO "B43"]
[WhiteElo "1904"]
[BlackElo "1863"]
[Annotator "NA RC"]
[PlyCount "176"]
[EventDate "2024.05.20"]
[EventType "tourn"]
[EventCountry "BAN"]
[SourceTitle "playchess.com"]
[Source "ChessBase"]
[SourceQuality "1"]
[TimeControl "40/5400+30:1800+30"]

1. e4 {[%emt 0:00:02]} c5 {[%emt 0:00:08]} 2. Nf3 {[%emt 0:00:05]} e6 {[%emt 0:00:29]} 3. d4 {[%emt 0:00:07]} cxd4 {[%emt 0:00:07]} 4. Nxd4 {[%emt 0:00:05]} a6 {[%emt 0:00:10]} 5. Nc3 {[%emt 0:00:06]} Qc7 {[%emt 0:00:18]} 6. Bd3 {[%emt 0:00:42]} Nf6 {[%emt 0:00:23]} 7. O-O {[%emt 0:00:27]} Be7 {[%emt 0:00:10]} 8. Be3 {[%emt 0:01:20]} O-O {[%emt 0:00:13] B43: Sicilian: Kan Variation: 5 Nc3.} 9. f4 {[%emt 0:00:42]} d6 {[%emt 0:00:12]} 10. Qf3 {[%emt 0:03:14]} Nc6 {[%emt 0:00:40]} 11. Nxc6 {[%emt 0:01:25]} bxc6 {[%emt 1:33:10]} 12. Rae1 {[%emt 0:02:31]} Rb8 {[%emt 0:00:00]} 13. e5 {[%emt 0:01:46]} Nd5 {[%emt 0:00:00]} 14. Qh5 {[%emt 0:11:57]} g6 {[%emt 0:00:00]} 15. Qh6 {[%emt 0:00:22]} ({White should try} 15. Nxd5 $11 cxd5 16. exd6 Qxd6 (16... Bxd6 17. Qh6 $11) 17. Qh6) 15... Nxe3 {[%emt 0:00:00]} 16. Rxe3 {[%emt 0:00:19]} dxe5 {[%emt 0:00:00]} 17. Rh3 {[%emt 0:01:59]} Bc5+ {[%emt 0:00:00]} 18. Kh1 {[%emt 0:00:12]} f5 {[%emt 0:00:00]} 19. fxe5 {[%emt 0:01:23]} Rf7 {[%emt 0:00:00]} 20. Na4 {[%emt 0:06:06]} Bd4 {[%emt 0:00:00]} 21. Bc4 {[%emt 0:02:59]} Qxe5 {[%emt 0:00:00]} (21... c5 $15) 22. c3 {[%emt 0:02:40]} Ba7 {[%emt 0:00:00]} 23. Rd1 {[%emt 0:01:31]} Bd7 {[%emt 0:00:00]} 24. Qh4 {[%emt 0:02:56]} Be3 {[%emt 0:00:00]} 25. Bxa6 {[%emt 0:08:31]} f4 {[%emt 0:00:00]} 26. b3 {[%emt 0:07:05]} c5 {[%emt 0:00:00]} 27. Be2 {[%emt 0:02:32]} Bxa4 {[%emt 0:00:00]} 28. bxa4 {[%emt 0:00:19]} Qxc3 {[%emt 0:00:00]} 29. Qg4 {[%emt 0:12:10]} Qf6 {[%emt 0:00:00]} 30. Bc4 {[%emt 0:01:47]} Re7 {[%emt 0:00:00]} 31. Rf1 {[%emt 0:01:21]} Qe5 {[%emt 0:00:00]} 32. Qh4 {[%emt 0:04:30]} (32. Rd1 $17) 32... Rbb7 {[%emt 0:00:00]} 33. Rd1 {[%emt 0:04:49]} Red7 {[%emt 0:00:00]} 34. Qg4 {[%emt 0:04:28]} Rxd1+ {[%emt 0:00:00]} 35. Qxd1 {[%emt 0:00:07]} Rd7 {[%emt 0:00:00]} 36. Qb1 {[%emt 0:04:04]} Rd2 {[%emt 0:00:00]} 37. Rf3 {[%emt 0:03:05]} Qd6 {[%emt 0:00:00]} 38. Rf1 $2 {[%emt 0:02:05]} (38. Qb7 $17) 38... Qc6 $2 {[%emt 0:00:00]} (38... f3 $1 $19 {[%csl Gd2][%cal Rf3g2]} 39. Bxe6+ Qxe6 40. Rxf3 Kg7 (40... Rxa2 41. Qb8+) 41. Qb7+ Qd7) 39. Qb8+ {[%emt 0:02:39]} Kg7 {[%emt 0:00:00]} 40. Qe5+ {[%emt 0:01:52]} Kh6 {[%emt 0:00:00]} 41. Rf3 {[%emt 0:30:24]} Rd1+ {[%emt 0:14:19]} 42. Bf1 {[%emt 0:00:30]} Rxf1+ {[%emt 0:02:29]} 43. Rxf1 {[%emt 0:00:07]} Qxa4 {[%emt 0:00:21]} 44. Qxe6 {[%emt 0:01:59]} c4 {[%emt 0:00:22]} 45. Rb1 {[%emt 0:02:27]} c3 {[%emt 0:01:21]} 46. Qh3+ {[%emt 0:01:10]} (46. Qf6 $11 {remains equal.} Qa5 (46... Qe4 47. Qf8+ Kh5 48. Rb5+ g5 49. Qg7 $11) 47. Qh4+ Qh5 48. Qd8) 46... Kg5 {[%emt 0:02:44]} 47. Qxh7 {[%emt 0:00:28]} c2 $1 {[%emt 0:00:57]} 48. Qe7+ {[%emt 0:00:00] [#]} Kf5 $1 {[%emt 0:00:00]} 49. Qf8+ $2 {[%emt 0:00:00] [#]} (49. Qf7+ $17 Ke5 50. Qg7+ Kd5 51. Qxg6) 49... Ke4 $19 {[%emt 0:00:00]} 50. Qe7+ {[%emt 0:00:00]} Kd3 {[%emt 0:00:00]} 51. Qd6+ {[%emt 0:00:00]} Kc3 {[%emt 0:00:00]} 52. Qxg6 {[%emt 0:00:00]} cxb1=Q+ {[%emt 0:00:00]} 53. Qxb1 {[%emt 0:00:00]} Qa8 {[%emt 0:00:00]} 54. Qb3+ {[%emt 0:00:00]} Kd4 {[%emt 0:00:00]} 55. Qd1+ {[%emt 0:00:00]} Ke5 {[%emt 0:00:00]} 56. Qh5+ {[%emt 0:00:00]} Kd6 {[%emt 0:00:00]} 57. Qd1+ {[%emt 0:00:00]} Kc5 {[%emt 0:00:00]} 58. Qc2+ {[%emt 0:00:00]} Kd4 {[%emt 0:00:00]} 59. Qd1+ {[%emt 0:00:00]} Kc3 {[%emt 0:00:00]} 60. Qb3+ {[%emt 0:00:00]} Kd2 {[%emt 0:00:00]} 61. Qb2+ {[%emt 0:00:00]} Kd1 {[%emt 0:00:00]} 62. Qb1+ {[%emt 0:00:00]} Ke2 {[%emt 0:00:00]} 63. Qb5+ {[%emt 0:00:00]} Kd2 {[%emt 0:00:00]} 64. Qb2+ {[%emt 0:00:00]} Kd3 {[%emt 0:00:00]} 65. Qb1+ {[%emt 0:00:00]} Kc4 {[%emt 0:00:00]} 66. Qb3+ {[%emt 0:00:00]} Kc5 {[%emt 0:00:00]} 67. Qc3+ {[%emt 0:00:26]} Kd6 {[%emt 0:00:00]} 68. Qd3+ {[%emt 0:00:24]} Ke7 {[%emt 0:00:00]} 69. Qh7+ {[%emt 0:00:16]} Kf6 {[%emt 0:00:00]} 70. Qh6+ {[%emt 0:00:41]} Ke5 {[%emt 0:00:00]} 71. Qh5+ {[%emt 0:00:14]} Kd6 {[%emt 0:00:00]} 72. Qg6+ {[%emt 0:00:41]} Kc5 {[%emt 0:00:00]} 73. Qc2+ {[%emt 0:00:15]} Kd4 {[%emt 0:00:00]} 74. Qd1+ {[%emt 0:00:06]} Kc3 {[%emt 0:00:00]} 75. Qb3+ {[%emt 0:00:08]} Kd2 {[%emt 0:00:00]} 76. Qb2+ {[%emt 0:00:07]} Ke1 {[%emt 0:00:00]} 77. Qb1+ {[%emt 0:00:34]} Ke2 {[%emt 0:00:00]} 78. Qb5+ {[%emt 0:00:13]} Kd1 {[%emt 0:00:51]} 79. Qb1+ {[%emt 0:00:10]} Bc1 {[%emt 0:00:13]} 80. Qd3+ {[%emt 0:00:54]} Bd2 {[%emt 0:00:47]} 81. Qf3+ {[%emt 0:00:42]} Qxf3 {[%emt 0:00:15]} 82. gxf3 {[%emt 0:00:06]} Ke2 {[%emt 0:01:09]} 83. Kg2 {[%emt 0:00:20]} Be1 {[%emt 0:00:17]} 84. a4 {[%emt 0:02:17]} Ke3 {[%emt 0:01:49]} 85. h3 {[%emt 0:02:12]} Kd4 {[%emt 0:00:26]} 86. Kf1 {[%emt 0:01:01]} Bg3 {[%emt 0:00:16]} 87. Ke2 {[%emt 0:00:26]} Kc4 {[%emt 0:01:16]} 88. a5 {[%emt 0:02:07]} Kb5 {[%emt 0:00:03]} 1/2-1/2

[Event "42nd WALTON Women-ch Bangladesh 2024"]
[Site "Dhaka"]
[Date "2024.05.23"]
[Round "4.5"]
[White "Nusrat Jahan, Alo"]
[Black "Tabassum Sadia, Shahjahan"]
[Result "1-0"]
[ECO "C54"]
[WhiteElo "1850"]
[BlackElo "1567"]
[Annotator "NA RC"]
[PlyCount "61"]
[EventDate "2024.05.20"]
[EventType "tourn"]
[EventCountry "BAN"]
[SourceTitle "playchess.com"]
[Source "ChessBase"]
[SourceQuality "1"]
[TimeControl "40/5400+30:1800+30"]

1. e4 {[%emt 0:00:05]} e5 {[%emt 0:00:34]} 2. Nf3 {[%emt 0:00:06]} Nc6 {[%emt 0:00:18]} 3. Bc4 {[%emt 0:00:11]} Bc5 {[%emt 0:00:22]} 4. c3 {[%emt 0:00:12]} Nf6 {[%emt 0:00:15]} 5. d4 {[%emt 0:00:23]} exd4 {[%emt 0:00:26]} 6. e5 {[%emt 0:00:29]} d5 {[%emt 0:05:00]} 7. Bb5 {[%emt 0:00:33]} Ne4 {[%emt 0:01:00]} 8. cxd4 {[%emt 0:00:10]} Bb6 {[%emt 0:00:28]} 9. Nc3 {[%emt 0:05:24] C54: Giuoco Piano: 4 c3 Nf6, main lines with 5 d4 and 5 d3.} Bg4 {[%emt 0:03:57]} 10. Be3 {[%emt 0:03:27]} O-O {[%emt 0:00:42]} 11. Qc2 {[%emt 0:02:53]} Nxc3 {[%emt 0:01:57]} 12. Bxc6 {[%emt 0:00:49]} bxc6 {[%emt 0:02:14]} 13. Qxc3 {[%emt 0:00:46]} Qd7 {[%emt 0:01:44]} 14. Nd2 {[%emt 0:09:44]} f6 {[%emt 0:05:13]} 15. exf6 {[%emt 0:08:46]} Rxf6 {[%emt 0:00:24]} 16. O-O {[%emt 0:00:54]} Qf7 {[%emt 0:03:40]} 17. f3 {[%emt 0:07:55]} Bd7 {[%emt 0:01:37]} 18. Rfe1 {[%emt 0:06:39]} Qg6 {[%emt 0:02:45]} 19. Bf2 {[%emt 0:04:30]} Rf7 {[%emt 0:04:27]} 20. Re5 {[%emt 0:05:07]} a5 {[%emt 0:03:35]} 21. a4 {[%emt 0:01:42]} Raf8 {[%emt 0:01:41]} 22. Rae1 {[%emt 0:03:26]} h5 {[%emt 0:03:28]} 23. h4 {[%emt 0:04:14]} Rf4 {[%emt 0:08:51]} 24. Rg5 {[%emt 0:07:03]} Qf6 {[%emt 0:05:55]} 25. Ree5 $16 {[%emt 0:01:21]} g6 {[%emt 0:27:08]} 26. Nb3 {[%emt 0:05:15]} Bh3 {[%emt 0:10:32]} 27. gxh3 {[%emt 0:08:48]} Rxf3 {[%emt 0:00:23]} 28. Qc2 {[%emt 0:00:10]} Rxf2 {[%emt 0:00:14]} 29. Rxg6+ {[%emt 0:00:12]} Qxg6+ {[%emt 0:00:27]} 30. Qxg6+ {[%emt 0:00:06]} Kh8 {[%emt 0:00:50]} 31. Rxh5# {[%emt 0:00:07]} 1-0

[Event "42nd WALTON Women-ch Bangladesh 2024"]
[Site "Dhaka"]
[Date "2024.05.23"]
[Round "4.6"]
[White "Jannatul, Ferdous"]
[Black "Warsia, Khusbu"]
[Result "1/2-1/2"]
[ECO "D02"]
[WhiteElo "1990"]
[BlackElo "1905"]
[Annotator "NA RC"]
[PlyCount "111"]
[EventDate "2024.05.20"]
[EventType "tourn"]
[EventCountry "BAN"]
[SourceTitle "playchess.com"]
[Source "ChessBase"]
[SourceQuality "1"]
[TimeControl "40/5400+30:1800+30"]

1. d4 {[%emt 0:00:16]} Nf6 {[%emt 0:05:02]} 2. Bf4 {[%emt 0:00:17]} e6 {[%emt 0:00:10]} 3. e3 {[%emt 0:00:09]} c5 {[%emt 0:00:01]} 4. c3 {[%emt 0:00:22]} d5 {[%emt 0:03:29]} 5. Nf3 {[%emt 0:01:10]} Be7 {[%emt 0:01:35]} 6. Bd3 {[%emt 0:02:56]} O-O {[%emt 0:00:51]} 7. Nbd2 {[%emt 0:00:59]} Nc6 {[%emt 0:04:25]} 8. Ne5 {[%emt 0:03:54]} a6 {[%emt 0:03:36] 8...Nd7 is the modern continuation. D02: 1 d4 d5 2 Nf3 sidelines, including 2...Nf6 3 g3 and 2...Nf6 3 Bf4.} 9. O-O {[%emt 0:04:12]} Bd7 {[%emt 0:01:11]} 10. Bg3 {[%emt 0:05:01]} b5 {[%emt 0:01:36]} 11. dxc5 {[%emt 0:06:58]} Bxc5 $146 {[%emt 0:02:44]} ({Predecessor:} 11... Nxe5 12. Bxe5 Bxc5 13. Qf3 Bc6 14. Qh3 h6 15. Nf3 Qe7 16. Rad1 Rfc8 17. Bb1 b4 18. cxb4 Bxb4 {½-½ Pilar,M (2216)-Hradecky,I (2102) CZE-chT2C 1415 2014 (7.4)}) 12. Nb3 {[%emt 0:00:31]} Bb6 {[%emt 0:10:14]} (12... Be7 $11 {feels stronger.}) 13. Nd4 {[%emt 0:08:49]} Na5 {[%emt 0:13:29]} 14. Bh4 {[%emt 0:04:00]} Nc4 {[%emt 0:12:28]} (14... Bxd4 $142 15. exd4 Nc4 16. Bxf6 gxf6) 15. Bxf6 {[%emt 0:16:38]} gxf6 {[%emt 0:01:30]} 16. Qg4+ {[%emt 0:39:14]} Kh8 {[%emt 0:00:23]} 17. Qh5 {[%emt 0:00:02]} f5 {[%emt 0:00:42]} 18. Nxf7+ {[%emt 0:00:03]} Rxf7 {[%emt 0:00:26]} 19. Qxf7 {[%emt 0:00:02]} Ne5 {[%emt 0:00:46]} 20. Nxe6 {[%emt 0:03:31]} Nxf7 {[%emt 0:01:58]} 21. Nxd8 {[%emt 0:00:03]} Rxd8 {[%emt 0:00:20]} 22. Rfd1 {[%emt 0:01:04]} Ne5 {[%emt 0:04:25]} 23. Bc2 {[%emt 0:01:03]} Be6 {[%emt 0:01:43]} 24. a4 {[%emt 0:00:23]} Nc4 {[%emt 0:07:44]} 25. b3 {[%emt 0:00:28]} Nd6 {[%emt 0:01:19]} 26. axb5 {[%emt 0:00:18]} a5 {[%emt 0:02:06]} 27. Bd3 {[%emt 0:00:01]} Rc8 {[%emt 0:00:24]} 28. Rdc1 {[%emt 0:00:28]} Ne4 {[%emt 0:05:17]} 29. Bxe4 {[%emt 0:01:31]} fxe4 {[%emt 0:00:30]} 30. Kf1 $2 {[%emt 0:00:30]} (30. b4 $18 a4 31. Rxa4) 30... Rc5 {[%emt 0:00:56]} 31. Ra4 {[%emt 0:00:34]} Bd7 $1 {[%emt 0:00:23]} ({Reject} 31... Rxb5 $6 32. b4 $14) 32. c4 {[%emt 0:00:29]} (32. Rd4 $15) 32... Bxb5 {[%emt 0:00:06]} 33. Raa1 {[%emt 0:00:29]} dxc4 {[%emt 0:01:41]} 34. bxc4 {[%emt 0:00:02]} Rxc4 {[%emt 0:01:11]} 35. Rxc4 {[%emt 0:00:50]} Bxc4+ {[%emt 0:00:01]} 36. Ke1 {[%emt 0:00:01]} Bc5 {[%emt 0:00:44]} 37. Kd2 {[%emt 0:00:29]} Bb4+ {[%emt 0:00:09]} 38. Kc2 {[%emt 0:00:16]} Kg7 {[%emt 0:00:22]} 39. f3 {[%emt 0:00:41]} Kf6 {[%emt 0:00:32]} 40. fxe4 {[%emt 0:00:56]} Ke5 {[%emt 0:00:09]} 41. g4 $19 {[%emt 0:12:00]} Kxe4 {[%emt 0:01:20]} 42. h4 {[%emt 0:07:41]} Kxe3 {[%emt 0:02:32]} 43. g5 {[%emt 0:08:28]} Be6 {[%emt 0:05:14]} 44. h5 {[%emt 0:01:01]} Kf4 {[%emt 0:00:13]} 45. g6 {[%emt 0:01:38]} hxg6 {[%emt 0:00:58]} 46. hxg6 {[%emt 0:02:26]} Bf5+ {[%emt 0:00:05]} 47. Kb3 {[%emt 0:00:08]} Bxg6 {[%emt 0:00:05]} 48. Rg1 {[%emt 0:00:46]} Bf7+ {[%emt 0:01:06]} 49. Ka4 {[%emt 0:00:02]} Be8+ {[%emt 0:00:09]} 50. Kb3 {[%emt 0:00:14]} Bb5 {[%emt 0:01:10]} 51. Rh1 {[%emt 0:00:43]} Be7 {[%emt 0:00:09]} 52. Re1 {[%emt 0:01:05]} a4+ {[%emt 0:00:08]} 53. Kc3 {[%emt 0:00:25]} Bd6 {[%emt 0:01:04]} 54. Re6 {[%emt 0:00:25]} Be5+ {[%emt 0:00:35]} 55. Rxe5 {[%emt 0:00:24]} Kxe5 {[%emt 0:00:07]} 56. Kb2 {[%emt 0:00:05]} 1/2-1/2

[Event "42nd WALTON Women-ch Bangladesh 2024"]
[Site "Dhaka"]
[Date "2024.05.24"]
[Round "5.1"]
[White "Warsia, Khusbu"]
[Black "Wadifa, Ahmed"]
[Result "0-1"]
[ECO "B48"]
[WhiteElo "1905"]
[BlackElo "1921"]
[Annotator "RC"]
[PlyCount "58"]
[EventDate "2024.05.20"]
[EventType "tourn"]
[EventCountry "BAN"]
[SourceTitle "playchess.com"]
[Source "ChessBase"]
[SourceQuality "1"]
[TimeControl "40/5400+30:1800+30"]

1. e4 {[%emt 0:00:21]} c5 {[%emt 0:01:33]} 2. Nf3 {[%emt 0:00:12]} e6 {[%emt 0:00:18]} 3. d4 {[%emt 0:00:07]} cxd4 {[%emt 0:00:04]} 4. Nxd4 {[%emt 0:00:05]} a6 {[%emt 0:00:06]} 5. Nc3 {[%emt 0:00:30]} b5 {[%emt 0:00:07]} 6. a3 {[%emt 0:00:05]} Bb7 {[%emt 0:00:07]} 7. Bd3 {[%emt 0:06:14]} Nc6 {[%emt 0:06:05]} 8. Be3 {[%emt 0:00:20]} Qc7 {[%emt 0:00:39]} 9. O-O {[%emt 0:01:44]} Nf6 {[%emt 0:00:38]} 10. Kh1 {[%emt 0:11:22]} Nxd4 {[%emt 0:07:06]} 11. Bxd4 {[%emt 0:00:13]} Bc5 {[%emt 0:00:05]} 12. Bxc5 {[%emt 0:02:29]} Qxc5 {[%emt 0:00:02]} 13. f4 {[%emt 0:02:41]} d6 {[%emt 0:00:06]} 14. Qd2 {[%emt 0:08:46]} Ng4 {[%emt 0:22:11]} 15. Qe2 {[%emt 0:16:54]} Ne3 {[%emt 0:01:09]} 16. Rfe1 {[%emt 0:08:11]} Nc4 {[%emt 0:00:12]} 17. Bxc4 {[%emt 0:01:29]} Qxc4 {[%emt 0:00:15]} 18. Qg4 {[%emt 0:01:04]} O-O {[%emt 0:00:38]} 19. Re3 {[%emt 0:05:51]} f5 {[%emt 0:11:30]} 20. Qd1 {[%emt 0:05:21]} Rad8 {[%emt 0:05:39]} 21. b3 {[%emt 0:04:26]} Qc6 {[%emt 0:05:01]} 22. Rg3 {[%emt 0:01:11]} Rf6 {[%emt 0:03:07]} 23. exf5 {[%emt 0:08:26]} exf5 {[%emt 0:00:44]} 24. Qd3 {[%emt 0:01:11]} Rg6 {[%emt 0:02:55]} 25. Rg1 {[%emt 0:04:57]} Rxg3 {[%emt 0:01:53]} 26. Qxg3 {[%emt 0:00:05]} Rc8 {[%emt 0:00:24]} 27. Ne2 {[%emt 0:02:09]} Qxc2 {[%emt 0:00:27]} 28. Nd4 {[%emt 0:00:07]} Qe4 {[%emt 0:00:18]} 29. Rd1 {[%emt 0:00:57]} Qxd4 {[%emt 0:00:30]} 0-1

[Event "42nd WALTON Women-ch Bangladesh 2024"]
[Site "Dhaka"]
[Date "2024.05.24"]
[Round "5.2"]
[White "Tabassum Sadia, Shahjahan"]
[Black "Jannatul, Ferdous"]
[Result "1-0"]
[ECO "D35"]
[WhiteElo "1567"]
[BlackElo "1990"]
[Annotator "RC"]
[PlyCount "123"]
[EventDate "2024.05.20"]
[EventType "tourn"]
[EventCountry "BAN"]
[SourceTitle "playchess.com"]
[Source "ChessBase"]
[SourceQuality "1"]
[TimeControl "40/5400+30:1800+30"]

1. d4 {[%emt 0:02:57]} d5 {[%emt 0:03:16]} 2. c4 {[%emt 0:00:14]} e6 {[%emt 0:00:10]} 3. Nc3 {[%emt 0:00:16]} Nf6 {[%emt 0:00:03]} 4. Nf3 {[%emt 0:00:38]} c6 {[%emt 0:00:06]} 5. cxd5 {[%emt 0:00:52]} exd5 {[%emt 0:00:17]} 6. Bg5 {[%emt 0:00:29]} Nbd7 {[%emt 0:01:23]} 7. e3 {[%emt 0:00:19]} Be7 {[%emt 0:00:11]} 8. Bd3 {[%emt 0:00:18]} O-O {[%emt 0:02:46]} 9. O-O {[%emt 0:00:06]} h6 {[%emt 0:10:08]} 10. Bh4 {[%emt 0:01:12]} Ne4 {[%emt 0:01:05]} 11. Bxe7 {[%emt 0:01:18]} Qxe7 {[%emt 0:00:04]} 12. Qc2 {[%emt 0:00:27]} Ndf6 {[%emt 0:04:08]} 13. Rab1 {[%emt 0:02:00]} Bf5 {[%emt 0:15:00]} 14. b4 {[%emt 0:15:31]} Rac8 {[%emt 0:01:58]} 15. Na4 {[%emt 0:03:56]} Nd7 {[%emt 0:21:02]} 16. Ne1 {[%emt 0:10:47]} Bh7 {[%emt 0:07:47]} 17. Nc5 {[%emt 0:03:44]} Ndxc5 {[%emt 0:02:22]} 18. bxc5 {[%emt 0:00:22]} f5 {[%emt 0:01:06]} 19. Nf3 {[%emt 0:01:26]} Qc7 {[%emt 0:20:25]} 20. Ne5 {[%emt 0:02:30]} Rce8 {[%emt 0:01:48]} 21. f3 {[%emt 0:05:40]} Ng5 {[%emt 0:02:11]} 22. f4 {[%emt 0:01:10]} Ne4 {[%emt 0:00:17]} 23. Bxe4 {[%emt 0:01:03]} fxe4 {[%emt 0:00:48]} 24. Qb2 {[%emt 0:02:01]} Rb8 {[%emt 0:01:26]} 25. Rfc1 {[%emt 0:03:21]} Rfe8 {[%emt 0:02:31]} 26. Qa3 {[%emt 0:01:32]} a6 {[%emt 0:00:24]} 27. Rb6 {[%emt 0:02:46]} Rxe5 {[%emt 0:00:44]} 28. fxe5 {[%emt 0:00:54]} Rf8 {[%emt 0:00:20]} 29. Qb2 {[%emt 0:01:05]} Qf7 {[%emt 0:00:39]} 30. Rxb7 {[%emt 0:02:40]} Qe8 {[%emt 0:00:33]} 31. Qe2 {[%emt 0:01:54]} Bf5 {[%emt 0:00:16]} 32. Rf1 {[%emt 0:01:17]} h5 {[%emt 0:00:32]} 33. Qb2 {[%emt 0:01:13]} Kh7 {[%emt 0:00:23]} 34. Rb6 {[%emt 0:00:48]} a5 {[%emt 0:00:32]} 35. a4 {[%emt 0:01:38]} Qg6 {[%emt 0:00:21]} 36. Rf4 {[%emt 0:02:00]} Qh6 {[%emt 0:00:55]} 37. Qf2 {[%emt 0:00:41]} Qe6 {[%emt 0:00:30]} 38. Qh4 {[%emt 0:01:14]} Qh6 {[%emt 0:00:28]} 39. Qe7 {[%emt 0:01:42]} Kg8 {[%emt 0:00:03]} 40. h4 {[%emt 0:04:15]} Qg6 {[%emt 0:00:59]} 41. Qg5 {[%emt 0:30:32]} Qh7 {[%emt 0:23:08]} 42. Rxc6 {[%emt 0:00:00]} g6 {[%emt 0:01:19]} 43. Rf6 {[%emt 0:00:00]} Rxf6 {[%emt 0:03:39]} 44. Qxf6 {[%emt 0:00:00]} Qd7 {[%emt 0:00:31]} 45. c6 {[%emt 0:00:00]} Qc7 {[%emt 0:00:49]} 46. Qd6 {[%emt 0:00:00]} Qb6 {[%emt 0:00:11]} 47. Qxd5+ {[%emt 0:00:00]} Kg7 {[%emt 0:00:01]} 48. Rf1 {[%emt 0:00:00]} Qb2 {[%emt 0:00:36]} 49. Qxa5 {[%emt 0:00:00]} Qb3 {[%emt 0:03:08]} 50. Re1 {[%emt 0:00:00]} Qa3 {[%emt 0:00:04]} 51. c7 {[%emt 0:00:00]} Qe7 {[%emt 0:00:02]} 52. Qc5 {[%emt 0:00:00]} Qxh4 {[%emt 0:00:13]} 53. Qc3 {[%emt 0:00:00]} Qg3 {[%emt 0:01:14]} 54. Qd2 {[%emt 0:00:00]} h4 {[%emt 0:00:57]} 55. Qf2 {[%emt 0:00:00]} Qg4 {[%emt 0:00:50]} 56. Qf4 {[%emt 0:00:00]} Qh5 {[%emt 0:00:02]} 57. a5 {[%emt 0:00:00]} h3 {[%emt 0:00:36]} 58. Qg3 {[%emt 0:00:00]} Bg4 {[%emt 0:01:20]} 59. gxh3 {[%emt 0:00:33]} Bxh3 {[%emt 0:00:05]} 60. a6 {[%emt 0:02:05]} Bd7 {[%emt 0:01:15]} 61. a7 {[%emt 0:00:32]} Qh8 {[%emt 0:00:22]} 62. Qg5 {[%emt 0:00:41]} 1-0